bitfinex/quotes_ETHUSD_20260313
["timestamp","ask_amount","ask_price","bid_price","bid_amount"]
[1773438120387,1.18843886,2103.6,2103.2,1.567]
[1773438120584,5.15947832,2103.7,2103.2,1.18865333]
[1773438120790,3.97108428,2103.6,2103.2,1.18865333]
[1773438121079,3.97108428,2103.6,2103.1,0.11249135]
[1773438121256,3.97108428,2103.6,2103.0,1.5681]
[1773438121257,4.02677995,2103.5,2103.0,1.18984311]
[1773438122157,4.02677995,2103.5,2103.1,1.808]
[1773438122551,4.02677995,2103.5,2103.1,2.99672116]
[1773438128749,4.02677995,2103.7,2103.3,0.0011]
[1773438128950,4.02677995,2104.0,2103.3,0.0011]
[1773438129151,3.91349689,2104.3,2103.6,3.76582974]
[1773438129483,3.46414895,2104.6,2103.8,3.76582974]
[1773438130191,1.18781774,2104.7,2103.8,3.76582974]
[1773438130481,6.50276237,2104.8,2103.8,3.76582974]
[1773438130780,3.68341523,2104.7,2103.8,3.76582974]
[1773438130976,3.68341523,2104.4,2103.9,1.823]
[1773438131154,3.68341523,2104.4,2103.6,1.567]
[1773438131155,4.93651061,2104.3,2103.8,1.18832588]
[1773438131552,4.93651061,2104.3,2103.8,3.76582974]
[1773438132380,4.93651061,2104.3,2103.9,1.824]
[1773438134894,3.74846709,2104.3,2103.9,3.01226471]
[1773438135190,4.93651216,2104.3,2103.9,1.824]
[1773438136265,4.93651216,2104.3,2103.8,3.76582974]
[1773438136579,4.93651216,2104.3,2104.0,1.827]
[1773438136780,4.93651216,2104.3,2103.8,3.76582974]
[1773438137963,4.93651216,2104.3,2103.9,1.828]
[1773438139053,4.93651216,2104.3,2103.9,5.59382974]
[1773438139786,4.93651216,2104.3,2104.0,3.76582974]
[1773438139787,1.18804507,2104.3,2104.0,3.76582974]
[1773438141557,0.001,2104.1,2104.0,3.76582974]
[1773438143372,0.001,2104.1,2104.0,3.81335825]
[1773438143576,1.18798707,2104.4,2104.1,3.30855953]
[1773438150291,0.24053236,2104.6,2104.2,3.30855953]
[1773438150292,4.3977797,2104.6,2104.2,3.30855953]
[1773438154581,4.3977797,2104.6,2104.2,3.30965953]
[1773438154878,0.001,2104.4,2104.2,3.30965953]
[1773438155677,0.001,2104.4,2104.1,0.47754919]
[1773438155878,0.001,2104.4,2104.0,0.04862851]
[1773438157307,1.18898707,2104.4,2104.1,0.24386237]
[1773438157608,1.18898707,2104.4,2104.0,0.04862851]
[1773438168507,1.18898707,2104.4,2103.3,0.0011]
[1773438168508,10.0911225,2104.1,2103.3,0.0011]
[1773438168817,4.16473642,2103.4,2103.3,0.0011]
[1773438169011,4.16473642,2103.4,2103.0,0.0011]
[1773438169211,3.42393816,2103.4,2103.0,0.0011]
[1773438169411,3.40402324,2103.7,2103.1,3.18276922]
[1773438169412,3.21768868,2103.7,2103.1,3.18276922]
[1773438169987,3.21768868,2103.7,2103.2,6.54376922]
[1773438170195,3.21768868,2103.7,2103.3,3.1691612]
[1773438170799,3.21768868,2103.7,2103.3,4.35774752]
[1773438171817,3.21768868,2103.7,2103.3,1.18858632]
[1773438172019,3.21768868,2103.7,2103.3,4.38162857]
[1773438172517,3.09276071,2103.6,2103.4,1.803]
[1773438174723,3.09276071,2103.6,2103.5,1.809]
[1773438175231,3.09276071,2103.6,2103.2,4.38167165]
[1773438175399,3.09276071,2103.6,2103.2,1.1886294]
[1773438176427,3.09276071,2103.6,2103.3,1.813]
[1773438178837,0.04752866,2103.9,2103.4,3.19061427]
[1773438179002,3.09276071,2103.9,2103.4,3.19061427]
[1773438179498,3.09276071,2103.9,2103.5,1.819]
[1773438180514,3.09276071,2103.9,2103.6,0.04753755]
[1773438184016,1.97657846,2104.0,2103.6,3.19819164]
[1773438184225,4.32854091,2104.0,2103.6,3.19819164]
[1773438184404,3.09276071,2103.9,2103.6,0.04753755]
[1773438185734,3.09276071,2103.9,2103.7,1.828]
[1773438186113,3.09276071,2103.9,2103.6,0.04753755]
[1773438187332,3.09276071,2103.9,2103.7,1.829]
[1773438187538,3.09276071,2103.9,2103.6,0.04753755]
[1773438187906,3.09276071,2103.8,2103.6,0.04753755]
[1773438188613,3.09276071,2103.8,2103.5,0.04863981]
[1773438188834,3.09276071,2103.8,2103.5,1.23713354]
[1773438189037,3.09276071,2103.8,2103.6,1.831]
[1773438190015,3.09276071,2103.9,2103.6,1.831]
[1773438190218,3.09276071,2103.8,2103.6,1.831]
[1773438192135,3.09276071,2103.8,2103.7,1.832]
[1773438192309,3.09276071,2103.8,2103.5,1.23712603]
[1773438193710,3.09276071,2103.8,2103.6,1.834]
[1773438193910,3.09276071,2103.8,2103.5,1.23712603]
[1773438194335,3.09376071,2103.7,2103.5,1.23712603]
[1773438195642,3.09376071,2103.7,2103.6,1.835]
[1773438195942,3.09376071,2103.7,2103.5,1.23712603]
[1773438197641,3.09376071,2103.7,2103.6,1.836]
[1773438201137,0.001,2103.7,2103.6,1.836]
[1773438204838,0.001,2103.7,2103.5,3.04025481]
[1773438205044,0.001,2103.7,2103.6,1.84]
[1773438211951,0.001,2103.7,2103.5,3.04025481]
[1773438212123,0.001,2103.7,2103.6,1.844]
[1773438217450,0.001,2103.7,2103.6,1.847]
[1773438219430,4.2181315,2104.2,2103.7,2.88751066]
[1773438219634,4.2181315,2104.2,2103.7,2.93504595]
[1773438219844,4.2181315,2104.2,2103.9,2.88751066]
[1773438220057,4.2181315,2104.2,2104.0,1.848]
[1773438220355,3.03001676,2104.2,2104.0,1.848]
[1773438220534,1.1880289,2104.4,2104.1,3.05176331]
[1773438220727,4.21698881,2104.5,2104.1,3.05176331]
[1773438222053,3.02901676,2104.5,2104.1,3.05176331]
[1773438222244,4.21693113,2104.6,2104.1,1.1881416]
[1773438222449,3.02901676,2104.5,2104.2,3.05176331]
[1773438223935,3.02901676,2104.5,2104.3,1.85]
[1773438224569,3.02901676,2104.6,2104.2,1.567]
[1773438224747,3.02901676,2104.6,2104.4,1.85]
[1773438224945,3.02901676,2104.6,2104.2,1.567]
[1773438225550,3.02901676,2104.6,2104.2,4.61876331]
[1773438226160,3.02901676,2104.6,2104.3,1.851]
[1773438226363,4.21689654,2104.6,2104.3,4.96905433]
[1773438227766,4.75218666,2104.8,2104.4,1.851]
[1773438227767,3.0177582,2104.7,2104.4,1.851]
[1773438227969,3.0177582,2104.7,2104.4,4.96905433]
[1773438228136,1.18878209,2104.8,2104.4,4.96905433]
[1773438228342,4.20654029,2104.8,2104.5,3.11805433]
[1773438228640,3.0177582,2104.7,2104.1,3.11805433]
[1773438228857,3.0177582,2104.7,2104.2,1.852]
[1773438229664,3.0177582,2104.7,2104.0,1.567]
[1773438229841,3.0177582,2104.5,2104.1,1.852]
[1773438230243,3.0177582,2104.5,2104.2,1.831]
[1773438230458,3.0177582,2104.3,2103.9,4.68505433]
[1773438230652,3.75891885,2104.3,2103.5,0.0011]
[1773438231750,3.75891885,2104.3,2103.6,1.794]
[1773438232480,2.94011348,2104.1,2103.8,0.0011]
[1773438232669,2.94011348,2104.1,2103.6,1.794]
[1773438233259,7.69228759,2104.4,2103.8,3.07548648]
[1773438233577,1.18877682,2104.8,2104.0,3.07548648]
[1773438233947,5.49132987,2105.2,2104.3,3.07548648]
[1773438234175,1.18759203,2105.1,2104.3,3.07548648]
[1773438234481,1.18759203,2105.1,2104.4,1.809]
[1773438234482,0.8105489,2104.8,2104.4,1.809]
[1773438234687,0.8105489,2104.8,2104.1,3.07548648]
[1773438235452,1.92886552,2104.9,2103.9,3.07548648]
[1773438235453,2.94011348,2104.5,2103.9,3.07548648]
[1773438236383,2.94011348,2104.2,2103.7,3.07548648]
[1773438236596,4.12826993,2104.1,2103.7,3.07548648]
[1773438237891,4.12826993,2104.1,2103.8,1.821]
[1773438238062,4.12826993,2104.1,2103.7,3.07548648]
[1773438238262,2.94011348,2104.0,2103.5,3.07658648]
[1773438238660,4.12838288,2103.9,2103.5,0.0011]
[1773438239359,4.12838288,2103.9,2103.5,3.07658648]
[1773438239694,4.12838288,2103.9,2103.6,1.826]
[1773438240602,4.12838288,2103.9,2103.5,3.07658648]
[1773438240766,2.94011348,2103.6,2103.2,1.5681]
[1773438241061,2.94011348,2103.6,2103.0,0.0011]
[1773438241062,2.93931348,2103.6,2103.0,0.0011]
[1773438241460,2.94011348,2103.3,2102.8,3.07658648]
[1773438242677,1.18864272,2103.3,2102.9,4.85948648]
[1773438242980,1.18864272,2103.3,2103.0,3.07548648]
[1773438243181,8.43492234,2103.7,2103.0,3.12303759]
[1773438243365,1.18843886,2103.6,2103.0,3.12303759]
[1773438243557,1.92958403,2103.7,2103.0,3.12303759]
[1773438243760,2.94011348,2103.6,2103.1,4.86748648]
[1773438243986,2.94011348,2103.6,2103.1,3.07548648]
[1773438244189,2.94011348,2103.6,2103.2,1.794]
[1773438244782,4.12860884,2103.5,2102.9,4.64248648]
[1773438244989,2.94011348,2103.4,2102.9,1.567]
[1773438245560,1.18849536,2103.5,2103.0,3.12303759]
[1773438245976,1.18849536,2103.5,2103.0,3.12413759]
[1773438246579,1.18849536,2103.5,2103.0,3.07658648]
[1773438246778,4.12860884,2103.5,2103.1,1.806]
[1773438248486,4.12860884,2103.5,2103.0,3.07658648]
[1773438250311,4.12860884,2103.5,2103.1,1.82]
[1773438252487,4.12860884,2103.5,2103.0,3.07658648]
[1773438252688,4.12860884,2103.5,2103.1,1.826]
[1773438253288,4.12860884,2103.5,2103.0,2.9563017]
[1773438255071,4.12860884,2103.5,2103.1,1.831]
[1773438255394,1.18849536,2103.5,2103.2,3.07548648]
[1773438255697,1.18842816,2103.7,2103.2,3.07548648]
[1773438255895,4.75307761,2104.0,2103.2,3.07548648]
[1773438256897,4.75307761,2104.0,2103.4,3.07548648]
[1773438257402,4.75229647,2104.3,2103.4,3.07548648]
[1773438257588,1.18808871,2104.3,2103.4,3.07548648]
[1773438257789,1.18781774,2104.7,2103.4,3.07548648]
[1773438258791,2.94011348,2104.0,2103.5,1.834]
[1773438258982,2.94011348,2103.7,2103.0,0.0011]
[1773438259175,0.74231415,2103.8,2102.5,1.5681]
[1773438259176,2.94011348,2103.0,2102.5,1.5681]
[1773438259673,2.94011348,2103.0,2102.5,0.0011]
[1773438259887,0.74131415,2103.1,2102.1,3.07548648]
[1773438259888,2.94011348,2102.9,2102.1,3.07548648]
[1773438260576,2.94011348,2102.9,2102.3,3.07548648]
[1773438260777,1.188891,2102.8,2102.3,4.26465187]
[1773438261200,1.188891,2102.8,2102.3,3.07548648]
[1773438261496,4.80216911,2102.8,2102.3,3.07548648]
[1773438261702,4.80216911,2102.8,2102.4,1.771]
[1773438261899,4.80216911,2102.8,2102.3,3.07548648]
[1773438263187,4.80188648,2103.3,2102.4,3.5581528]
[1773438264002,4.7544335,2103.4,2102.6,3.5581528]
[1773438264205,1.18860837,2103.3,2102.6,3.5581528]
[1773438264898,1.18854267,2103.5,2102.6,3.5581528]
[1773438265098,4.80182078,2103.5,2102.8,3.5581528]
[1773438265784,0.001,2103.8,2102.7,1.18894754]
[1773438265989,1.18841234,2103.7,2102.8,3.5581528]
[1773438266712,0.001,2103.8,2102.8,3.5581528]
[1773438267202,0.001,2103.8,2102.9,1.18883446]
[1773438267380,0.001,2103.8,2103.0,3.5581528]
[1773438268796,1.18815645,2104.1,2103.2,3.5581528]
[1773438268992,1.18815645,2104.1,2103.4,3.5581528]
[1773438269390,4.75197434,2104.4,2103.6,3.5581528]
[1773438269590,8.36525245,2104.4,2103.6,3.5581528]
[1773438271285,0.001,2103.8,2103.6,3.5581528]
[1773438271480,8.36525245,2104.4,2103.6,3.5581528]
[1773438272511,4.80126518,2104.4,2103.6,3.5581528]
[1773438273313,4.80126518,2104.4,2103.8,3.5581528]
[1773438274120,4.80126518,2104.4,2103.9,1.824]
[1773438275212,4.80126518,2104.4,2103.9,5.83214044]
[1773438275711,3.66141131,2104.0,2103.0,4.00814044]
[1773438275890,3.66141131,2103.7,2102.7,0.0011]
[1773438276092,3.66141131,2103.5,2102.7,0.0011]
[1773438276620,3.66141131,2103.1,2102.7,0.0011]
[1773438276985,3.66141131,2103.1,2102.8,1.795]
[1773438277187,3.66141131,2103.1,2102.2,0.0011]
[1773438278114,3.66141131,2102.9,2102.2,0.0011]
[1773438278286,3.66141131,2102.9,2102.3,1.752]
[1773438280319,3.66141131,2102.9,2102.3,5.76014044]
[1773438280491,4.85025824,2102.9,2102.4,0.04756468]
[1773438280690,4.85026058,2102.9,2102.4,0.04756468]
[1773438280993,4.85018826,2103.1,2102.4,4.05570512]
[1773438281395,1.18877695,2103.1,2102.4,4.05570512]
[1773438281606,3.66141131,2103.0,2102.4,4.05570512]
[1773438283619,3.66141131,2103.2,2102.5,5.19720108]
[1773438284312,3.66141131,2103.2,2102.6,0.0011]
[1773438285420,3.66141131,2103.2,2102.7,1.794]
[1773438285801,5.34880754,2103.1,2102.7,1.794]
[1773438290531,4.75477333,2103.2,2102.7,5.66717649]
[1773438290825,1.18855186,2103.4,2102.8,3.87317649]
[1773438291196,5.16578102,2103.4,2102.8,3.87317649]
[1773438291694,3.97722916,2103.3,2102.8,3.87317649]
[1773438293330,1.18866489,2103.2,2102.8,3.87317649]
[1773438295410,1.18866489,2103.2,2102.6,0.04866016]
[1773438295411,3.97722916,2103.1,2102.6,0.04866016]
[1773438295621,3.97722916,2103.1,2102.6,0.0011]
[1773438296932,3.97722916,2103.1,2102.7,1.829]
[1773438297130,3.97722916,2103.1,2102.6,0.0011]
[1773438297433,3.97722916,2103.1,2102.8,1.83]
[1773438297621,3.97722916,2102.9,2102.6,0.0011]
[1773438298717,3.97722916,2102.9,2102.7,1.832]
[1773438298916,3.97722916,2102.9,2102.6,0.0011]
[1773438299128,3.97722916,2102.7,2102.2,0.0011]
[1773438299432,3.97722916,2102.7,2102.3,0.0011]
[1773438299614,3.97722916,2102.7,2102.2,0.0011]
[1773438299615,3.97722916,2102.5,2102.2,0.0011]
[1773438300833,3.97722916,2102.5,2102.3,1.827]
[1773438301211,3.97722916,2102.5,2102.1,0.0011]
[1773438301839,3.97722916,2102.3,2102.1,0.0011]
[1773438302439,3.97722916,2102.8,2102.1,4.27573085]
[1773438302830,3.97722916,2102.8,2102.2,1.83]
[1773438303433,3.97722916,2102.8,2102.2,4.27463085]
[1773438303747,0.001,2103.0,2102.6,4.27463085]
[1773438304039,1.18872141,2103.1,2102.6,4.27463085]
[1773438305237,5.16591254,2103.2,2102.6,4.27463085]
[1773438305540,1.18868338,2103.2,2102.6,4.27463085]
[1773438305729,1.18868338,2103.2,2102.4,4.27463085]
[1773438305730,3.97722916,2103.2,2102.4,4.27463085]
[1773438305931,3.97722916,2103.0,2102.3,1.831]
[1773438306132,3.97722916,2103.0,2102.1,0.0011]
[1773438306340,1.8552264,2103.1,2102.1,0.0011]
[1773438306341,3.97722916,2102.7,2102.1,0.0011]
[1773438307738,3.97722916,2102.7,2102.2,1.805]
[1773438308038,3.97722916,2102.7,2102.1,0.0011]
[1773438308225,3.97722916,2102.5,2102.0,0.0011]
[1773438309044,4.75543251,2102.9,2102.0,0.0011]
[1773438309045,5.16600709,2103.1,2102.0,4.27573085]
[1773438309243,8.73235209,2103.0,2102.0,4.27573085]
[1773438309941,3.97722916,2102.9,2102.2,4.27463085]
[1773438310242,3.97722916,2102.7,2102.0,0.0011]
[1773438311659,4.75512293,2103.0,2102.0,4.27573085]
[1773438311660,4.75533786,2103.0,2102.0,4.27573085]
[1773438311941,8.73256702,2103.0,2102.2,4.27573085]
[1773438312121,3.97722916,2102.7,2102.3,1.768]
[1773438312322,3.97722916,2102.7,2102.2,0.0011]
[1773438313747,3.97722916,2102.7,2102.0,0.0011]
[1773438314143,1.18900409,2102.6,2102.0,0.0011]
[1773438314343,1.18900409,2102.6,2102.0,4.27573085]
[1773438314548,0.001,2102.8,2102.0,4.27573085]
[1773438314549,0.001,2102.8,2102.2,4.27463085]
[1773438314845,4.75590815,2102.7,2102.2,4.27463085]
[1773438315217,1.18994754,2102.8,2102.2,4.27463085]
[1773438315846,1.18989616,2102.8,2102.2,4.27463085]
[1773438316142,1.18989616,2102.8,2102.3,5.99063085]
[1773438316143,1.18992352,2102.8,2102.3,5.99063085]
[1773438316347,1.18992352,2102.8,2102.3,7.17980087]
[1773438316348,1.18989355,2102.8,2102.3,7.17980087]
[1773438317049,1.18989233,2102.8,2102.3,7.17980087]
[1773438317244,1.18989348,2102.8,2102.3,7.17980087]
[1773438317545,0.001,2102.8,2102.3,7.17980087]
[1773438319630,0.001,2102.8,2102.4,4.27463085]
[1773438320457,3.97722916,2103.3,2102.6,4.27463085]
[1773438320639,3.97722916,2103.2,2102.7,1.762]
[1773438321533,1.18860837,2103.3,2102.7,6.29338289]
[1773438322128,1.18860837,2103.3,2102.8,4.53138289]
[1773438322636,4.7541634,2103.5,2102.9,4.53138289]
[1773438323247,1.18849536,2103.5,2102.9,4.53138289]
[1773438324770,4.60156895,2103.8,2103.1,4.53138289]
[1773438324932,4.60156895,2103.8,2102.5,0.0011]
[1773438325140,4.60156895,2103.8,2102.6,4.53138289]
[1773438326275,4.60156895,2103.8,2102.8,4.53138289]
[1773438326840,1.18838237,2103.7,2103.0,4.53138289]
[1773438328038,1.18838237,2103.7,2103.2,4.53138289]
[1773438328238,4.60156895,2103.6,2102.7,4.53138289]
[1773438328438,4.60156895,2103.6,2102.6,1.18900409]
[1773438328640,4.60156895,2103.6,2102.7,4.53138289]
[1773438329165,1.18849536,2103.5,2102.7,4.53138289]
[1773438329355,4.60156895,2103.4,2102.5,4.53248289]
[1773438329556,4.60156895,2103.3,2102.6,1.797]
[1773438331755,1.18866489,2103.2,2102.7,1.806]
[1773438332145,5.79023384,2103.2,2102.7,1.806]
[1773438332976,5.78995132,2103.7,2102.8,4.53138289]
[1773438333148,6.60822143,2104.2,2102.9,4.53138289]
[1773438333149,1.18830374,2103.9,2102.9,4.53138289]
[1773438334070,1.1882467,2104.0,2103.1,4.53138289]
[1773438334546,1.18817904,2104.1,2103.1,4.53138289]
[1773438334967,1.18914367,2104.2,2103.1,4.53138289]
[1773438336385,0.001,2104.2,2103.3,4.53138289]
[1773438337048,0.001,2104.2,2103.4,1.567]
[1773438337245,0.001,2104.0,2103.5,4.53138289]
[1773438338975,0.001,2104.2,2103.6,4.53138289]
[1773438339270,0.001,2104.2,2103.7,4.53138289]
[1773438343269,0.001,2104.2,2103.9,4.53138289]
[1773438345302,0.001,2104.2,2103.9,5.71964111]
[1773438345997,0.001,2104.2,2103.9,1.18825822]
[1773438346182,1.18788577,2104.6,2104.0,5.07726992]
[1773438346375,1.18788577,2104.6,2104.1,6.90926992]
[1773438346571,6.31135665,2104.7,2104.1,6.90926992]
[1773438347262,6.31135665,2104.7,2104.1,6.95679617]
[1773438348587,1.18787189,2104.7,2104.2,5.07726992]
[1773438348902,9.87250093,2105.7,2104.4,5.07726992]
[1773438349108,3.63463069,2105.8,2104.4,5.07726992]
[1773438349109,1.18723225,2105.8,2104.4,5.07726992]
[1773438349270,6.31071701,2105.8,2104.6,5.07726992]
[1773438349464,6.31071701,2105.8,2104.6,6.2651314]
[1773438349684,5.12348476,2105.7,2104.6,6.2651314]
[1773438351369,5.12348476,2105.7,2104.7,6.9294245]
[1773438351696,5.01054999,2105.5,2104.7,8.11720655]
[1773438352987,5.01054999,2105.5,2104.6,1.18784322]
[1773438353293,5.01054999,2105.5,2104.8,5.0934245]
[1773438353666,1.18742281,2105.4,2104.8,5.0934245]
[1773438354584,6.1979605,2105.5,2104.8,6.28118434]
[1773438357699,6.19793618,2105.5,2104.8,6.28118434]
[1773438358599,5.01054999,2105.5,2104.8,6.28118434]
[1773438359197,5.01054999,2105.8,2104.8,6.28118434]
[1773438359398,6.19774725,2105.8,2104.9,1.84]
[1773438359598,5.01054999,2105.7,2104.8,5.0934245]
[1773438359807,3.04189482,2105.8,2105.0,1.84]
[1773438359808,5.01054999,2105.5,2105.0,1.84]
[1773438360181,5.01054999,2105.5,2104.8,5.0934245]
[1773438360375,5.01054999,2105.3,2104.6,5.0934245]
[1773438360576,5.01054999,2105.3,2104.3,5.0934245]
[1773438360791,5.01054999,2105.0,2103.8,6.28175038]
[1773438360987,1.85469756,2105.1,2102.5,0.0011]
[1773438360988,5.01054999,2104.7,2103.5,5.0934245]
[1773438361176,5.01054999,2104.7,2103.5,6.28191986]
[1773438361376,5.01054999,2104.7,2103.6,1.827]
[1773438361588,5.01054999,2104.7,2103.5,5.0934245]
[1773438362205,5.01054999,2104.7,2103.6,1.828]
[1773438362399,5.01054999,2104.5,2103.6,1.828]
[1773438363281,5.01054999,2104.5,2103.7,0.0011]
[1773438363790,5.01054999,2104.5,2103.8,1.817]
[1773438364102,5.01054999,2104.5,2103.7,0.0011]
[1773438364508,5.01054999,2104.3,2103.7,0.0011]
[1773438364800,6.1985197,2104.5,2103.7,5.0945245]
[1773438364999,4.75205257,2104.8,2103.7,5.0945245]
[1773438365000,6.19935084,2104.8,2103.7,5.0945245]
[1773438365305,6.19935084,2104.8,2103.9,5.0934245]
[1773438365306,1.18880085,2104.8,2103.9,5.0934245]
[1773438366703,0.001,2104.8,2104.1,5.0934245]
[1773438366897,5.01054999,2105.5,2104.1,5.0934245]
[1773438366898,1.18742281,2105.4,2104.1,5.0934245]
[1773438367098,6.1979728,2105.4,2104.1,5.0934245]
[1773438367300,1.18742281,2105.4,2104.1,5.0934245]
[1773438368498,5.01054999,2105.8,2104.3,5.0934245]
[1773438368696,5.01054999,2105.4,2104.4,3.01497515]
[1773438368877,5.01054999,2105.4,2104.4,1.827]
[1773438369090,5.01054999,2105.3,2104.4,1.827]
[1773438370099,5.01054999,2105.0,2104.0,5.0934245]
[1773438370403,5.01054999,2104.7,2103.7,6.6605245]
[1773438370582,5.01054999,2104.7,2103.7,0.0011]
[1773438370783,5.01054999,2104.4,2103.7,0.0011]
[1773438371104,1.18787418,2104.6,2103.7,5.0945245]
[1773438371303,6.19838399,2104.7,2103.8,1.797]
[1773438372707,6.19838399,2104.7,2103.9,5.0934245]
[1773438373004,6.19838399,2104.7,2104.0,1.18821292]
[1773438373312,6.19838399,2104.7,2104.0,6.28163742]
[1773438373712,1.187834,2104.7,2104.0,6.28163742]
[1773438374409,4.75089115,2104.9,2104.0,6.28163742]
[1773438375907,1.18770487,2104.9,2104.0,6.28163742]
[1773438376111,5.01054999,2105.3,2104.0,6.28163742]
[1773438376112,1.18752118,2105.3,2104.0,6.28163742]
[1773438376309,0.001,2104.8,2104.0,6.28163742]
[1773438376495,1.18752118,2105.3,2104.1,5.0934245]
[1773438377510,5.01054999,2105.4,2104.3,5.0934245]
[1773438379584,5.01054999,2105.2,2104.3,5.0934245]
[1773438380614,5.01054999,2105.2,2104.4,1.824]
[1773438381219,5.01054999,2105.2,2104.3,5.0934245]
[1773438381512,5.01054999,2105.2,2104.5,1.825]
[1773438382118,1.18759203,2105.1,2104.5,1.825]
[1773438383000,6.37161624,2105.1,2104.5,1.825]
[1773438384592,6.37161624,2105.1,2104.6,1.83]
[1773438385117,6.37161624,2105.1,2104.3,5.0934245]
[1773438385286,6.37161624,2105.1,2104.1,6.79467528]
[1773438385694,5.18402421,2105.0,2104.1,5.60654345]
[1773438386087,5.18402421,2105.0,2104.1,6.79467199]
[1773438386293,5.18402421,2105.0,2104.2,1.831]
[1773438386517,1.18770487,2104.9,2104.2,1.831]
[1773438386727,1.18770487,2104.9,2104.2,7.43754345]
[1773438386913,1.18770487,2104.9,2104.3,5.60654345]
[1773438388215,5.18402421,2104.8,2104.4,1.832]
[1773438388415,5.18402421,2104.8,2104.0,1.18819626]
[1773438388416,5.18402421,2104.8,2104.3,0.0011]
[1773438388621,5.18402421,2104.6,2104.3,0.0011]
[1773438389620,5.18402421,2104.6,2104.4,1.831]
[1773438390197,5.18402421,2104.6,2104.0,0.0011]
[1773438390615,1.18793062,2104.5,2104.0,0.0011]
[1773438391624,1.18793062,2104.5,2104.1,1.832]
[1773438391797,6.37194353,2104.6,2104.1,1.832]
[1773438396134,6.37194353,2104.6,2104.0,5.60764345]
[1773438396335,6.37194353,2104.6,2104.1,1.835]
[1773438402119,6.37194353,2104.6,2104.3,0.0011]
[1773438402518,0.001,2104.4,2104.3,0.0011]
[1773438402719,0.001,2104.4,2104.3,1.8371]
[1773438404823,1.18898707,2104.4,2104.0,5.60764345]
[1773438406238,1.18898707,2104.4,2104.1,1.837]
[1773438407634,6.43610245,2104.4,2104.2,1.837]
[1773438408920,1.83699979,2104.3,2104.0,0.0011]
[1773438409630,6.43521537,2104.2,2104.0,0.0011]
[1773438409831,6.43521537,2104.2,2103.8,0.0011]
[1773438410031,5.24711538,2104.1,2103.5,0.0011]
[1773438410640,5.24711538,2103.8,2103.2,0.0011]
[1773438410932,1.85117675,2103.9,2103.3,5.53139649]
[1773438410933,5.4244683,2103.9,2103.3,5.53139649]
[1773438411140,5.4244683,2103.9,2103.2,1.18976381]
[1773438411141,5.4244683,2103.9,2103.2,0.0011]
[1773438411346,5.4244683,2103.6,2103.2,0.0011]
[1773438411645,1.85117675,2103.7,2102.7,0.0011]
[1773438411646,1.18866489,2103.2,2102.7,0.0011]
[1773438411808,1.18866489,2103.2,2102.8,0.0011]
[1773438413832,10.17912786,2103.3,2102.9,1.772]
[1773438414011,10.17912786,2103.3,2102.9,1.7731]
[1773438414914,6.61285067,2103.7,2103.0,5.25828992]
[1773438415115,1.1883714,2103.8,2103.1,5.25828992]
[1773438415315,4.75312929,2104.4,2103.5,5.25828992]
[1773438415316,1.18804352,2104.3,2103.5,5.25828992]
[1773438415517,6.61251182,2104.3,2103.6,1.783]
[1773438415714,0.001,2104.2,2103.6,1.783]
[1773438416215,0.001,2104.2,2103.6,7.04128992]
[1773438417032,0.001,2104.2,2103.7,0.0011]
[1773438419140,1.188998,2104.4,2103.8,5.25938992]
[1773438419342,0.001,2104.4,2103.9,5.25938992]
[1773438419644,1.18898784,2104.4,2103.9,5.25938992]
[1773438419837,1.18898784,2104.4,2103.8,1.79]
[1773438419838,0.001,2104.4,2104.0,5.25938992]
[1773438420045,0.001,2104.4,2104.0,5.25828992]
[1773438420643,5.0,2105.8,2104.1,5.25938992]
[1773438420644,4.75104522,2104.9,2104.1,5.25938992]
[1773438420838,10.17551352,2104.9,2104.1,5.25828992]
[1773438421141,10.17551352,2104.9,2104.3,5.25828992]
[1773438422235,10.17551352,2104.9,2104.4,1.802]
[1773438423540,10.17551352,2104.9,2104.4,1.8031]
[1773438423742,6.61217317,2104.9,2104.4,1.802]
[1773438424421,6.61218709,2104.9,2104.4,2.98995404]
[1773438424644,6.61218709,2104.9,2104.4,1.802]
[1773438425242,5.4244683,2104.9,2104.4,1.802]
[1773438425551,6.6121738,2104.9,2104.4,7.06028992]
[1773438426458,6.6121738,2104.9,2104.4,1.802]
[1773438427043,6.6121738,2104.9,2104.1,5.25828992]
[1773438427565,5.4244683,2104.8,2104.1,5.25828992]
[1773438428465,5.4244683,2104.8,2104.2,1.808]
[1773438429026,5.4244683,2104.6,2104.2,1.808]
[1773438429347,5.4244683,2104.6,2104.3,0.0011]
[1773438429551,1.18793062,2104.5,2104.3,0.0011]
[1773438430859,6.61239892,2104.5,2104.3,0.0011]
[1773438431030,0.001,2104.7,2104.3,5.25938992]
[1773438431234,0.001,2104.7,2104.4,5.25938992]
[1773438431435,0.001,2104.7,2104.4,5.25828992]
[1773438431949,0.001,2105.1,2104.6,5.25828992]
[1773438432940,1.18859752,2105.1,2104.6,5.25828992]
[1773438433534,0.001,2105.1,2104.6,6.44613392]
[1773438436456,0.001,2105.1,2104.7,0.0011]
[1773438436657,0.001,2105.1,2104.8,1.818]
[1773438440559,0.001,2105.1,2104.9,0.0011]
[1773438441062,0.001,2105.1,2105.0,0.0011]
[1773438441354,4.7501425,2105.3,2105.0,5.30791906]
[1773438441534,10.22391264,2105.5,2105.1,0.0011]
[1773438441535,1.18742281,2105.4,2105.1,0.0011]
[1773438441739,1.18719726,2105.8,2105.2,5.30791906]
[1773438441949,1.18719726,2105.8,2105.2,5.30681906]
[1773438442544,1.18719726,2105.8,2105.3,0.0011]
[1773438442855,1.18719726,2105.8,2105.4,1.827]
[1773438443031,1.18719726,2105.8,2105.5,0.0011]
[1773438444358,1.18719726,2105.8,2105.6,0.0011]
[1773438444567,0.90047681,2105.7,2105.5,0.0011]
[1773438444861,0.90047681,2105.7,2105.3,0.0011]
[1773438445253,0.90047681,2105.7,2105.3,5.30791906]
[1773438445929,0.90047681,2105.7,2105.4,1.829]
[1773438446763,1.18731003,2105.6,2105.4,1.829]
[1773438449671,0.90047681,2105.7,2105.5,1.831]
[1773438449672,7.5621905,2105.7,2105.5,1.831]
[1773438449858,2.08777328,2105.7,2105.5,1.8321]
[1773438450065,1.18729647,2105.7,2105.5,1.8321]
[1773438451069,0.00743529,2105.6,2105.5,1.8321]
[1773438452474,1.19474532,2105.6,2105.5,1.8321]
[1773438452845,1.19474532,2105.6,2104.1,2.52785]
[1773438452846,6.66916254,2105.6,2104.1,2.52785]
[1773438453043,6.66916254,2105.6,2104.7,5.30681906]